Workbook

Sheet Start
B2: Integrated Duty Cycle Fuel Calculator

Sheet 1-Stove
B2: Integrated Duty Cycle Fuel Calculator 1- Stove and Lab Information
B7: 1.1 Stove Information
B8: Appliance manufacturer:
B9: Appliance model:
F10: Volume adjustment reason:
B11: 1.2 Firebox Information
B12: Firebox width: | C12: 24 | D12: in.
B13: Firebox depth: | C13: 24 | D13: in.
B14: Firebox height: | C14: 6 | D14: in.
B15: Volume adjustment: | D15: ft3 | E15: =IF(AND(C15<>"",C15<>0),"Explain the reason for volume adjustment ↑↑","") -> 
B16: Firebox volume: | C16: =IF(C12*C13*C14*0.000578704-C15<=0,"",C12*C13*C14*0.000578704-C15) -> 2.000001024 | D16: ft3 | E16: =IF(C16>4.5,"Firebox volume cannot be greater than 4.5","") -> 
B18: 1.3 Test Lab Information
B19: Lab name:
B20: Test lab location:
B21: Primary testing staff name:
B22: Test lab phone:
B23: Test lab contact email:
B24: Third party certifier:
B25: Third party phone:
B26: Third party email:
B27: Other people present or participating either in person or remotely in the test:
B30: These timestamps cannot be edited
B31: Calculation Started at: | C31: 2021-03-08T16:15:25
B32: Saved and Finished at: | C32: Still in progress

Sheet 2-Fuel Load
B2: Integrated Duty Cycle Fuel Calculator 2- Fuel Load Information
B7: 2.1 Fuel Load General Information
B8: Wood species: | C8: Birch
B9: Wood density: | C9: 0.6 | D9: 103 kg/m3 | E9: ="= "&TEXT(C9*0.062428*1000,"0.0")&" lb/ft3" -> = 37.5 lb/ft3
B10: Firebox Volume: | C10: =IF('1-Stove'!C16>4.5,"",'1-Stove'!C16) -> 2.000001024 | D10: ft3 | E10: =IF(C10=""," Firebox volume is not correct. Fix it in the Stove sheet.","") ->  | Q10: Poly curve fitting paramaters for calculating log characteristics
B11: Loadind direction: | C11: =IF('1-Stove'!C12>=('1-Stove'!C13-2),"East-West","North-South") -> East-West | R11: Firebox Volume, ft^3 | S11: Sm Pc. Low (in) | T11: Sm pc Hi (in) | U11: Lg Pc Low (in) | V11: Lg Pc Hi (in)
B12: Target log length: | C12: =_xlfn.IFNA(IF(OR('1-Stove'!C12="",'1-Stove'!C13="",'1-Stove'!C14=""),"",INDEX({12,14,16,18,20,22,24},MATCH(ROUNDDOWN(MAX('1-Stove'!C12:C14)*0.85,0),{12,14,16,18,20,22,24},1))),12) -> 20 | D12: in. | Q12: "Small" Volume | R12: 0.8 | S12: 2.2 | T12: 3.1 | U12: 3.1 | V12: 4.5
Q13: "Medium" Volume | R13: 2 | S13: 2.8 | T13: 4 | U13: 4 | V13: 5.3
Q14: "Large" Volume | R14: 3 | S14: 3 | T14: 4.4 | U14: 4.4 | V14: 6.3
B15: 2.2 Load Piece Details | S15: x2 | T15: x | U15: c
B16: Load | C16: Total load weight (lb) | D16: Min. piece weight (lb) | E16: Max. piece weight (lb) | F16: Target piece number per load | Q16: Poly Small Low | S16: =+LINEST(S12:S14,R12:R14^{1,2}) -> -0.1363636364 | T16: 0.8818181818 | U16: 1.581818182
B17: L1 - Kindling | C17: =IF(C10<>"",C10*1,"") -> 2.000001024 | D17: =IF(C10<>"",0.1,"") -> 0.1 | E17: =IF(C10<>"",0.2,"") -> 0.2 | F17: =IFERROR(ROUNDUP(C17/AVERAGE(D17:E17),0),"") -> 14 | Q17: Poly Small Hi | S17: =+LINEST(T12:T14,R12:R14^{1,2}) -> -0.1590909091 | T17: 1.195454545 | U17: 2.245454545
B18: L1 - Starter | C18: =IF(C10<>"",C10*3,"") -> 6.000003072 | D18: =IF(C10<>"",1,"") -> 1 | E18: =IF(D19<>"",D19-D19*0.01,"") -> 2.642756381 | F18: =IF(E18<>"",IFERROR(ROUNDUP(C18/AVERAGE(D18:E18),0),""),"") -> 4 | Q18: Poly Large Low | S18: =LINEST(U12:U14,R12:R14^{1,2}) -> -0.1590909091 | T18: 1.195454545 | U18: 2.245454545
B19: L2 - Small pieces | C19: =IF(C10<>"",C10*7,"") -> 14.00000717 | D19: =IF(AND(C9<>"",C12<>"",S26<>""),IFERROR(PI()*(S26^2)/4*C12*0.000578704*C9*1000/16.0185,""),"") -> 2.66945089 | E19: =IFERROR(MIN(IF(AND(C9<>"",C12<>"",S27<>""),IFERROR(PI()*(S27^2)/4*C12*0.000578704*C9*1000/16.0185,""),""),D22-D22*0.01),"") -> 5.393380587 | F19: =IFERROR(ROUNDUP(C19/AVERAGE(D19:E19),0),"") -> 4 | Q19: Poly Large Hi | S19: =LINEST(V12:V14,R12:R14^{1,2}) -> 0.1515151515 | T19: 0.2424242424 | U19: 4.209090909
B20: L3 - Large pieces | C20: =IF(C10<>"",C10*5,"") -> 10.00000512 | D20: =IF(AND(C9<>"",C12<>"",C20<>""),IFERROR(0.5*C20-0.2*(0.5*C20),""),"") -> 4.000002048 | E20: =IF(AND(C9<>"",C12<>"",C20<>""),IFERROR(0.5*C20+0.2*(0.5*C20),""),"") -> 6.000003072 | F20: =IFERROR(IF(ROUNDUP(C20/AVERAGE(D20:E20),0)>3,3,ROUNDUP(C20/AVERAGE(D20:E20),0)),"") -> 2
B21: L4 - Small pieces | C21: =IF(C10<>"",C10*4,"") -> 8.000004096 | D21: =D19 -> 2.66945089 | E21: =E19 -> 5.393380587 | F21: =IFERROR(ROUNDUP(C21/AVERAGE(D21:E21),0),"") -> 2
B22: L4 - Large pieces | C22: =IF(C10<>"",C10*8,"") -> 16.00000819 | D22: =IF(AND(C9<>"",C12<>"",S28<>""),IFERROR(PI()*(S28^2)/4*C12*0.000578704*C9*1000/16.0185,""),"") -> 5.447859179 | E22: =IF(AND(C9<>"",C12<>"",S29<>""),IFERROR(PI()*(S29^2)/4*C12*0.000578704*C9*1000/16.0185,""),"") -> 9.564398169 | F22: =IFERROR(ROUNDUP(C22/AVERAGE(D22:E22),0),"") -> 3
Q25: Range of the Log Diameters:
Q26: Min. Small Log Diamter Target (in): | S26: =IFERROR(S16*C10^2+C10*T16+U16,"") -> 2.800000344
Q27: Max. Small Log Diamter Target (in): | S27: =IFERROR(S17*C10^2+C10*T17+U17,"") -> 4.000000573
Q28: Min. Large Log Diamter Target: | S28: =IFERROR(S18*C10^2+C10*T18+U18,"") -> 4.000000573
Q29: Max. Large Log Diamter Target: | S29: =IFERROR(S19*C10^2+C10*T19+U19,"") -> 5.300000869

Sheet 3.1-Run #1 (hidden)
B2: Integrated Duty Cycle Fuel Calculator 3.1 Run #1 Details
B6: Detailed Fuel Information
F9: Enter the number of fuel pieces first, then enter the weight and MC details in Tables 3.2 through 3.6 ↓↓
B10: 3.1 Fuel Load Data
C11: Target load (lb) | D11: Actual weight (lb) | E11: Target # of pieces | F11: Actual # of pieces
B12: L1 - Kindling weight | C12: =IF('2-Fuel Load'!C17="","",TEXT('2-Fuel Load'!C17*0.95,"0.00")&" – "&TEXT('2-Fuel Load'!C17*1.05,"0.00")) -> 1.90 – 2.10 | D12: =IF(C24=0,"",C24) ->  | E12: ='2-Fuel Load'!F17 -> 14 | G12: Go to table
B13: L1 - Starter | C13: =IF('2-Fuel Load'!C18="","",TEXT('2-Fuel Load'!C18*0.95,"0.00")&" – "&TEXT('2-Fuel Load'!C18*1.05,"0.00")) -> 5.70 – 6.30 | D13: =IF(OR(C35=0,C24=0,SUM(C25:C34)=0),"",C35-C24) ->  | E13: ='2-Fuel Load'!F18 -> 4 | G13: Go to table
B14: L2 - Small pieces | C14: =IF('2-Fuel Load'!C19="","",TEXT('2-Fuel Load'!C19*0.95,"0.00")&" – "&TEXT('2-Fuel Load'!C19*1.05,"0.00")) -> 13.30 – 14.70 | D14: =IF(C49=0,"",C49) ->  | E14: ='2-Fuel Load'!F19 -> 4 | G14: Go to table
B15: L3 - Large pieces | C15: =IF('2-Fuel Load'!C20="","",TEXT('2-Fuel Load'!C20*0.95,"0.00")&" – "&TEXT('2-Fuel Load'!C20*1.05,"0.00")) -> 9.50 – 10.50 | D15: =IF(C56=0,"",C56) ->  | E15: ='2-Fuel Load'!F20 -> 2 | G15: Go to table
B16: L4 - Small pieces | C16: =IF('2-Fuel Load'!C21="","",TEXT('2-Fuel Load'!C21*0.95,"0.00")&" – "&TEXT('2-Fuel Load'!C21*1.05,"0.00")) -> 7.60 – 8.40 | D16: =IF(SUM(C60:C65)=0,"",SUM(C60:C65)) ->  | E16: ='2-Fuel Load'!F21 -> 2 | G16: Go to table
B17: L4 - Large pieces | C17: =IF('2-Fuel Load'!C22="","",TEXT('2-Fuel Load'!C22*0.95,"0.00")&" – "&TEXT('2-Fuel Load'!C22*1.05,"0.00")) -> 15.20 – 16.80 | D17: =IF(SUM(C70:C75)=0,"",SUM(C70:C75)) ->  | E17: ='2-Fuel Load'!F22 -> 3 | G17: Go to table
B22: 3.2 Load 1 - Kindling and starter fuel
B23: set the # of logs | C23: Weight (lb) | D23: pin 1 (%) | E23: pin 2 (%) | F23: pin 3 (%) | G23: pin 4 (%) | H23: Avg moisture
B24: Kindling total: | D24: Not applicable
B25: Piece 1: | H25: =IFERROR(AVERAGE(D25:G25),"") -> 
B26: Piece 2:
B27: Piece 3:
B28: Piece 4:
B29: Piece 5:
B30: Piece 6:
B31: Piece 7:
B32: Piece 8:
B33: Piece 9:
B34: Piece 10: | H34: =IFERROR(AVERAGE(D34:G34),"") -> 
B35: Load total: | C35: =IF(COUNTA(C24:C34)=0,"",SUM(C24:C34)) ->  | H35: =IF(COUNTA(C25:C34)<>COUNTA(D25:G34)/4,"",IFERROR(SUMPRODUCT(C25:C34,H25:H34)/C35,"")) -> 
C36: =IF(OR('2-Fuel Load'!C17="",'2-Fuel Load'!C18=""),"Target load is not defined yet.",IF(OR(C35="",C35<SUM('2-Fuel Load'!C17:C18)*0.95),"↑↑ Add more fuel pieces or use heavier logs to reach the target weight: "&TEXT(SUM('2-Fuel Load'!C17:C18)*0.95,"0.00")&"–"&TEXT(SUM('2-Fuel Load'!C17:C18)*1.05,"0.00")&" lb"&CHAR(10)&"Allowed weight of each piece: "&TEXT('2-Fuel Load'!D18,"0.00")&"–"&TEXT('2-Fuel Load'!E18,"0.00")&" lb",IF(C35>SUM('2-Fuel Load'!C17:C18)*1.05,"↑↑ Remove some fuel pieces or use lighter logs to reach the target weight :"&TEXT(SUM('2-Fuel Load'!C17:C18)*0.95,"0.00")&"–"&TEXT(SUM('2-Fuel Load'!C17:C18)*1.05,"0.00")&" lb"&CHAR(10)&"Allowed weight of each piece: "&TEXT('2-Fuel Load'!D18,"0.00")&"–"&TEXT('2-Fuel Load'!E18,"0.00")&" lb","✓ Load weight is in the range"))) -> ↑↑ Add more fuel pieces or use heavier logs to reach the target weight: 7.60–8.40 lb Allowed weight of each piece: 1.00–2.64 lb
B37: 3.3 Load 2 - Small pieces
B38: set the # of logs | C38: Weight (lb) | D38: pin 1 (%) | E38: pin 2 (%) | F38: pin 3 (%) | G38: pin 4 (%) | H38: Avg moisture
B39: Piece 1: | H39: =IFERROR(AVERAGE(D39:G39),"") -> 
B40: Piece 2: | H40: =IFERROR(AVERAGE(D40:G40),"") -> 
B41: Piece 3:
B42: Piece 4:
B43: Piece 5:
B44: Piece 6:
B45: Piece 7:
B46: Piece 8:
B47: Piece 9:
B48: Piece 10:
B49: Load total: | C49: =IF(COUNTA(C39:C48)=0,"",SUM(C39:C48)) ->  | H49: =IF(COUNTA(C39:C48)<>COUNTA(D39:G48)/4,"",IFERROR(SUMPRODUCT(C39:C48,H39:H48)/C49,"")) -> 
C50: =IF('2-Fuel Load'!C19="","Target load is not defined yet.",IF(OR(C49="",C49<'2-Fuel Load'!C19*0.95),"↑↑ Add more fuel pieces or use heavier logs to reach the target weight: "&TEXT('2-Fuel Load'!C19*0.95,"0.00")&"–"&TEXT('2-Fuel Load'!C19*1.05,"0.00")&" lb"&CHAR(10)&"Allowed weight of each piece: "&TEXT('2-Fuel Load'!D19,"0.00")&"–"&TEXT('2-Fuel Load'!E19,"0.00")&" lb",IF(C49>'2-Fuel Load'!C19*1.05,"↑↑ Remove some fuel pieces or use lighter logs to reach the target weight :"&TEXT('2-Fuel Load'!C19*0.95,"0.00")&"–"&TEXT('2-Fuel Load'!C19*1.05,"0.00")&" lb"&CHAR(10)&"Allowed weight of each piece: "&TEXT('2-Fuel Load'!D19,"0.00")&"–"&TEXT('2-Fuel Load'!E19,"0.00")&" lb","✓ Load weight is in the range"))) -> ↑↑ Add more fuel pieces or use heavier logs to reach the target weight: 13.30–14.70 lb Allowed weight of each piece: 2.67–5.39 lb
B51: 3.4 Load 3 - Large pieces
B52: set the # of logs | C52: Weight (lb) | D52: pin 1 (%) | E52: pin 2 (%) | F52: pin 3 (%) | G52: pin 4 (%) | H52: Avg moisture
B53: Piece 1: | H53: =IFERROR(AVERAGE(D53:G53),"") -> 
B54: Piece 2: | H54: =IFERROR(AVERAGE(D54:G54),"") -> 
B55: Piece 3: | H55: =IFERROR(AVERAGE(D55:G55),"") -> 
B56: Load total: | C56: =IF(COUNTA(C53:C55)=0,"",SUM(C53:C55)) ->  | H56: =IF(COUNTA(C53:C55)<>COUNTA(D53:G55)/4,"",IFERROR(SUMPRODUCT(C53:C55,H53:H55)/C56,"")) -> 
C57: =IF('2-Fuel Load'!C20="","Target load is not defined yet.",IF(OR(C56="",C56<'2-Fuel Load'!C20*0.95),"↑↑ Add more fuel pieces or use heavier logs to reach the target weight: "&TEXT('2-Fuel Load'!C20*0.95,"0.00")&"–"&TEXT('2-Fuel Load'!C20*1.05,"0.00")&" lb"&CHAR(10)&"Allowed weight of each piece: "&TEXT('2-Fuel Load'!D20,"0.00")&"–"&TEXT('2-Fuel Load'!E20,"0.00")&" lb",IF(C56>'2-Fuel Load'!C20*1.05,"↑↑ Remove some fuel pieces or use lighter logs to reach the target weight :"&TEXT('2-Fuel Load'!C20*0.95,"0.00")&"–"&TEXT('2-Fuel Load'!C20*1.05,"0.00")&" lb"&CHAR(10)&"Allowed weight of each piece: "&TEXT('2-Fuel Load'!D20,"0.00")&"–"&TEXT('2-Fuel Load'!E20,"0.00")&" lb","✓ Load weight is in the range"))) -> ↑↑ Add more fuel pieces or use heavier logs to reach the target weight: 9.50–10.50 lb Allowed weight of each piece: 4.00–6.00 lb
B58: 3.5 Load 4 - Small pieces
B59: set the # of logs | C59: Weight (lb) | D59: pin 1 (%) | E59: pin 2 (%) | F59: pin 3 (%) | G59: pin 4 (%) | H59: Avg moisture
B60: Piece 1: | H60: =IFERROR(AVERAGE(D60:G60),"") -> 
B61: Piece 2:
B62: Piece 3:
B63: Piece 4:
B64: Piece 5:
B65: Piece 6:
B66: Load total: | C66: =IF(SUM(C60:C65)=0,"",SUM(C60:C65)) ->  | H66: =IF(COUNTA(C60:C65)<>COUNTA(D60:G65)/4,"",IFERROR(SUMPRODUCT(C60:C65,H60:H65)/C66,"")) -> 
C67: =IF('2-Fuel Load'!C21="","Target load is not defined yet.",IF(OR(C66="",C66<'2-Fuel Load'!C21*0.95),"↑↑ Add more fuel pieces or use heavier logs to reach the target weight: "&TEXT('2-Fuel Load'!C21*0.95,"0.00")&"–"&TEXT('2-Fuel Load'!C21*1.05,"0.00")&" lb"&CHAR(10)&"Allowed weight of each piece: "&TEXT('2-Fuel Load'!D21,"0.00")&"–"&TEXT('2-Fuel Load'!E21,"0.00")&" lb",IF(C66>'2-Fuel Load'!C21*1.05,"↑↑ Remove some fuel pieces or use lighter logs to reach the target weight :"&TEXT('2-Fuel Load'!C21*0.95,"0.00")&"–"&TEXT('2-Fuel Load'!C21*1.05,"0.00")&" lb"&CHAR(10)&"Allowed weight of each piece: "&TEXT('2-Fuel Load'!D21,"0.00")&"–"&TEXT('2-Fuel Load'!E21,"0.00")&" lb","✓ Load weight is in the range"))) -> ↑↑ Add more fuel pieces or use heavier logs to reach the target weight: 7.60–8.40 lb Allowed weight of each piece: 2.67–5.39 lb
B68: 3.6 Load 4 - Large pieces
B69: set the # of logs | C69: Weight (lb) | D69: pin 1 (%) | E69: pin 2 (%) | F69: pin 3 (%) | G69: pin 4 (%) | H69: Avg moisture
B70: Piece 1: | H70: =IFERROR(AVERAGE(D70:G70),"") -> 
B71: Piece 2:
B72: Piece 3:
B73: Piece 4:
B74: Piece 5:
B75: Piece 6:
B76: Load total: | C76: =IF(SUM(C70:C75)=0,"",SUM(C70:C75)) ->  | H76: =IF(COUNTA(C70:C75)<>COUNTA(D70:G75)/4,"",IFERROR(SUMPRODUCT(C70:C75,H70:H75)/C76,"")) -> 
C77: =IF('2-Fuel Load'!C22="","Target load is not defined yet.",IF(OR(C76="",C76<'2-Fuel Load'!C22*0.95),"↑↑ Add more fuel pieces or use heavier logs to reach the target weight: "&TEXT('2-Fuel Load'!C22*0.95,"0.00")&"–"&TEXT('2-Fuel Load'!C22*1.05,"0.00")&" lb"&CHAR(10)&"Allowed weight of each piece: "&TEXT('2-Fuel Load'!D22,"0.00")&"–"&TEXT('2-Fuel Load'!E22,"0.00")&" lb",IF(C76>'2-Fuel Load'!C22*1.05,"↑↑ Remove some fuel pieces or use lighter logs to reach the target weight :"&TEXT('2-Fuel Load'!C22*0.95,"0.00")&"–"&TEXT('2-Fuel Load'!C22*1.05,"0.00")&" lb"&CHAR(10)&"Allowed weight of each piece: "&TEXT('2-Fuel Load'!D22,"0.00")&"–"&TEXT('2-Fuel Load'!E22,"0.00")&" lb","✓ Load weight is in the range"))) -> ↑↑ Add more fuel pieces or use heavier logs to reach the target weight: 15.20–16.80 lb Allowed weight of each piece: 5.45–9.56 lb
B79: Other Testing Information
B82: 3.7 Run Information | E82: 3.8 Test Lab Condition
B83: Run date: | F83: pre-test | G83: post-test
B84: Run number: | E84: Temperature: | H84: F
B85: Testing staff: | E85: Barometric pressure: | H85: in. Hg
B86: Witnesses or others present for test: | E86: Relative humidity: | H86: %
B87: Start time:
B88: End time:
B90: 3.9 Run Operation Data
B91: Load | C91: Actual weight at start of phase before loading (lb) | D91: Actual weight at start of phase after loading (lb) | E91: Target weight at end of phase (lb) | F91: Actual Weight at end of phase (lb)
B92: L1 (Fully Open) | E92: =IFERROR(D14*0.175,"") ->  | G92: =IFERROR(" Allowable range: "&TEXT(0.95*E92,"0.00")&"–"&TEXT(1.05*E92,"0.00"),"") -> 
B93: L2(A) (Fully Open) | E93: =IFERROR(F92+(D14/3),"") ->  | G93: =IFERROR(" Allowable range: "&TEXT(0.95*E93,"0.00")&"–"&TEXT(1.05*E93,"0.00"),"") -> 
B94: L2(B) (Fully Closed) | D94: Not applicable | E94: =IFERROR(F92+(D14*0.1),"") -> 
B95: L3 (Fully Closed) | E95: =IFERROR(F94+(D15*0.1),"") -> 
B96: L4 (Fully Closed) | E96: =IFERROR(F95+D16*0.1+D17*0.1,"") -> 
B98: 3.10 Run Operation Data
B99: Load | C99: Start time | D99: End time | E99: Door open time | F99: Door closed time
B100: L1 (Fully Open)
B101: L2(A) (Fully Open)
B102: L2(B) (Fully Closed)
B103: L3 (Fully Closed)
B104: L4 (Fully Closed)
B106: 3.11 Run Operation Data
B107: Load | C107: Notes on fuel adjustments/time
B108: L1 (Fully Open)
B109: L2(A) (Fully Open)
B110: L2(B) (Fully Closed)
B111: L3 (Fully Closed)
B112: L4 (Fully Closed)
B114: 3.12 Post Run Data Check
B115: 1) Any data points with filter temperatures outside the 80-90F?
B116: If yes, how many and for how long
B117: 2) Did tunnel temperature exceed 40C during the test?
B118: If yes, how many and for how long
B119: 3) Did tunnel humidity exceed 90%?
B120: If yes, how many and for how long
B121: 4) Any tunnel dew point measurements within 2C of filter temp
B122: If yes, how many and for how long
B123: 5) Tunnel flow for test? (dscf/min)

Sheet 3.2-Run #2 (hidden)
B2: Integrated Duty Cycle Fuel Calculator 3.2 Run #2 Details
B6: Detailed Fuel Information
F9: Enter the number of fuel pieces first, then enter the weight and MC details in Tables 3.2 through 3.6 ↓↓
B10: 3.1 Fuel Load Data
C11: Target load (lb) | D11: Actual weight (lb) | E11: Target # of pieces | F11: Actual # of pieces
B12: L1 - Kindling weight | C12: =IF('2-Fuel Load'!C17="","",TEXT('2-Fuel Load'!C17*0.95,"0.00")&" – "&TEXT('2-Fuel Load'!C17*1.05,"0.00")) -> 1.90 – 2.10 | D12: =IF(C24=0,"",C24) ->  | E12: ='2-Fuel Load'!F17 -> 14 | G12: Go to table
B13: L1 - Starter | C13: =IF('2-Fuel Load'!C18="","",TEXT('2-Fuel Load'!C18*0.95,"0.00")&" – "&TEXT('2-Fuel Load'!C18*1.05,"0.00")) -> 5.70 – 6.30 | D13: =IF(OR(C35=0,C24=0,SUM(C25:C34)=0),"",C35-C24) ->  | E13: ='2-Fuel Load'!F18 -> 4 | G13: Go to table
B14: L2 - Small pieces | C14: =IF('2-Fuel Load'!C19="","",TEXT('2-Fuel Load'!C19*0.95,"0.00")&" – "&TEXT('2-Fuel Load'!C19*1.05,"0.00")) -> 13.30 – 14.70 | D14: =IF(C49=0,"",C49) ->  | E14: ='2-Fuel Load'!F19 -> 4 | G14: Go to table
B15: L3 - Large pieces | C15: =IF('2-Fuel Load'!C20="","",TEXT('2-Fuel Load'!C20*0.95,"0.00")&" – "&TEXT('2-Fuel Load'!C20*1.05,"0.00")) -> 9.50 – 10.50 | D15: =IF(C56=0,"",C56) ->  | E15: ='2-Fuel Load'!F20 -> 2 | G15: Go to table
B16: L4 - Small pieces | C16: =IF('2-Fuel Load'!C21="","",TEXT('2-Fuel Load'!C21*0.95,"0.00")&" – "&TEXT('2-Fuel Load'!C21*1.05,"0.00")) -> 7.60 – 8.40 | D16: =IF(SUM(C60:C65)=0,"",SUM(C60:C65)) ->  | E16: ='2-Fuel Load'!F21 -> 2 | G16: Go to table
B17: L4 - Large pieces | C17: =IF('2-Fuel Load'!C22="","",TEXT('2-Fuel Load'!C22*0.95,"0.00")&" – "&TEXT('2-Fuel Load'!C22*1.05,"0.00")) -> 15.20 – 16.80 | D17: =IF(SUM(C70:C75)=0,"",SUM(C70:C75)) ->  | E17: ='2-Fuel Load'!F22 -> 3 | G17: Go to table
B22: 3.2 Load 1 - Kindling and starter fuel
B23: set the # of logs | C23: Weight (lb) | D23: pin 1 (%) | E23: pin 2 (%) | F23: pin 3 (%) | G23: pin 4 (%) | H23: Avg moisture
B24: Kindling total: | D24: Not applicable
B25: Piece 1: | H25: =IFERROR(AVERAGE(D25:G25),"") -> 
B26: Piece 2:
B27: Piece 3:
B28: Piece 4:
B29: Piece 5:
B30: Piece 6:
B31: Piece 7:
B32: Piece 8:
B33: Piece 9:
B34: Piece 10: | H34: =IFERROR(AVERAGE(D34:G34),"") -> 
B35: Load total: | C35: =IF(COUNTA(C24:C34)=0,"",SUM(C24:C34)) ->  | H35: =IF(COUNTA(C25:C34)<>COUNTA(D25:G34)/4,"",IFERROR(SUMPRODUCT(C25:C34,H25:H34)/C35,"")) -> 
C36: =IF(OR('2-Fuel Load'!C17="",'2-Fuel Load'!C18=""),"Target load is not defined yet.",IF(OR(C35="",C35<SUM('2-Fuel Load'!C17:C18)*0.95),"↑↑ Add more fuel pieces or use heavier logs to reach the target weight: "&TEXT(SUM('2-Fuel Load'!C17:C18)*0.95,"0.00")&"–"&TEXT(SUM('2-Fuel Load'!C17:C18)*1.05,"0.00")&" lb"&CHAR(10)&"Allowed weight of each piece: "&TEXT('2-Fuel Load'!D18,"0.00")&"–"&TEXT('2-Fuel Load'!E18,"0.00")&" lb",IF(C35>SUM('2-Fuel Load'!C17:C18)*1.05,"↑↑ Remove some fuel pieces or use lighter logs to reach the target weight :"&TEXT(SUM('2-Fuel Load'!C17:C18)*0.95,"0.00")&"–"&TEXT(SUM('2-Fuel Load'!C17:C18)*1.05,"0.00")&" lb"&CHAR(10)&"Allowed weight of each piece: "&TEXT('2-Fuel Load'!D18,"0.00")&"–"&TEXT('2-Fuel Load'!E18,"0.00")&" lb","✓ Load weight is in the range"))) -> ↑↑ Add more fuel pieces or use heavier logs to reach the target weight: 7.60–8.40 lb Allowed weight of each piece: 1.00–2.64 lb
B37: 3.3 Load 2 - Small pieces
B38: set the # of logs | C38: Weight (lb) | D38: pin 1 (%) | E38: pin 2 (%) | F38: pin 3 (%) | G38: pin 4 (%) | H38: Avg moisture
B39: Piece 1: | H39: =IFERROR(AVERAGE(D39:G39),"") -> 
B40: Piece 2: | H40: =IFERROR(AVERAGE(D40:G40),"") -> 
B41: Piece 3:
B42: Piece 4:
B43: Piece 5:
B44: Piece 6:
B45: Piece 7:
B46: Piece 8:
B47: Piece 9:
B48: Piece 10:
B49: Load total: | C49: =IF(COUNTA(C39:C48)=0,"",SUM(C39:C48)) ->  | H49: =IF(COUNTA(C39:C48)<>COUNTA(D39:G48)/4,"",IFERROR(SUMPRODUCT(C39:C48,H39:H48)/C49,"")) -> 
C50: =IF('2-Fuel Load'!C19="","Target load is not defined yet.",IF(OR(C49="",C49<'2-Fuel Load'!C19*0.95),"↑↑ Add more fuel pieces or use heavier logs to reach the target weight: "&TEXT('2-Fuel Load'!C19*0.95,"0.00")&"–"&TEXT('2-Fuel Load'!C19*1.05,"0.00")&" lb"&CHAR(10)&"Allowed weight of each piece: "&TEXT('2-Fuel Load'!D19,"0.00")&"–"&TEXT('2-Fuel Load'!E19,"0.00")&" lb",IF(C49>'2-Fuel Load'!C19*1.05,"↑↑ Remove some fuel pieces or use lighter logs to reach the target weight :"&TEXT('2-Fuel Load'!C19*0.95,"0.00")&"–"&TEXT('2-Fuel Load'!C19*1.05,"0.00")&" lb"&CHAR(10)&"Allowed weight of each piece: "&TEXT('2-Fuel Load'!D19,"0.00")&"–"&TEXT('2-Fuel Load'!E19,"0.00")&" lb","✓ Load weight is in the range"))) -> ↑↑ Add more fuel pieces or use heavier logs to reach the target weight: 13.30–14.70 lb Allowed weight of each piece: 2.67–5.39 lb
B51: 3.4 Load 3 - Large pieces
B52: set the # of logs | C52: Weight (lb) | D52: pin 1 (%) | E52: pin 2 (%) | F52: pin 3 (%) | G52: pin 4 (%) | H52: Avg moisture
B53: Piece 1: | H53: =IFERROR(AVERAGE(D53:G53),"") -> 
B54: Piece 2: | H54: =IFERROR(AVERAGE(D54:G54),"") -> 
B55: Piece 3: | H55: =IFERROR(AVERAGE(D55:G55),"") -> 
B56: Load total: | C56: =IF(COUNTA(C53:C55)=0,"",SUM(C53:C55)) ->  | H56: =IF(COUNTA(C53:C55)<>COUNTA(D53:G55)/4,"",IFERROR(SUMPRODUCT(C53:C55,H53:H55)/C56,"")) -> 
C57: =IF('2-Fuel Load'!C20="","Target load is not defined yet.",IF(OR(C56="",C56<'2-Fuel Load'!C20*0.95),"↑↑ Add more fuel pieces or use heavier logs to reach the target weight: "&TEXT('2-Fuel Load'!C20*0.95,"0.00")&"–"&TEXT('2-Fuel Load'!C20*1.05,"0.00")&" lb"&CHAR(10)&"Allowed weight of each piece: "&TEXT('2-Fuel Load'!D20,"0.00")&"–"&TEXT('2-Fuel Load'!E20,"0.00")&" lb",IF(C56>'2-Fuel Load'!C20*1.05,"↑↑ Remove some fuel pieces or use lighter logs to reach the target weight :"&TEXT('2-Fuel Load'!C20*0.95,"0.00")&"–"&TEXT('2-Fuel Load'!C20*1.05,"0.00")&" lb"&CHAR(10)&"Allowed weight of each piece: "&TEXT('2-Fuel Load'!D20,"0.00")&"–"&TEXT('2-Fuel Load'!E20,"0.00")&" lb","✓ Load weight is in the range"))) -> ↑↑ Add more fuel pieces or use heavier logs to reach the target weight: 9.50–10.50 lb Allowed weight of each piece: 4.00–6.00 lb
B58: 3.5 Load 4 - Small pieces
B59: set the # of logs | C59: Weight (lb) | D59: pin 1 (%) | E59: pin 2 (%) | F59: pin 3 (%) | G59: pin 4 (%) | H59: Avg moisture
B60: Piece 1: | H60: =IFERROR(AVERAGE(D60:G60),"") -> 
B61: Piece 2:
B62: Piece 3:
B63: Piece 4:
B64: Piece 5:
B65: Piece 6:
B66: Load total: | C66: =IF(SUM(C60:C65)=0,"",SUM(C60:C65)) ->  | H66: =IF(COUNTA(C60:C65)<>COUNTA(D60:G65)/4,"",IFERROR(SUMPRODUCT(C60:C65,H60:H65)/C66,"")) -> 
C67: =IF('2-Fuel Load'!C21="","Target load is not defined yet.",IF(OR(C66="",C66<'2-Fuel Load'!C21*0.95),"↑↑ Add more fuel pieces or use heavier logs to reach the target weight: "&TEXT('2-Fuel Load'!C21*0.95,"0.00")&"–"&TEXT('2-Fuel Load'!C21*1.05,"0.00")&" lb"&CHAR(10)&"Allowed weight of each piece: "&TEXT('2-Fuel Load'!D21,"0.00")&"–"&TEXT('2-Fuel Load'!E21,"0.00")&" lb",IF(C66>'2-Fuel Load'!C21*1.05,"↑↑ Remove some fuel pieces or use lighter logs to reach the target weight :"&TEXT('2-Fuel Load'!C21*0.95,"0.00")&"–"&TEXT('2-Fuel Load'!C21*1.05,"0.00")&" lb"&CHAR(10)&"Allowed weight of each piece: "&TEXT('2-Fuel Load'!D21,"0.00")&"–"&TEXT('2-Fuel Load'!E21,"0.00")&" lb","✓ Load weight is in the range"))) -> ↑↑ Add more fuel pieces or use heavier logs to reach the target weight: 7.60–8.40 lb Allowed weight of each piece: 2.67–5.39 lb
B68: 3.6 Load 4 - Large pieces
B69: set the # of logs | C69: Weight (lb) | D69: pin 1 (%) | E69: pin 2 (%) | F69: pin 3 (%) | G69: pin 4 (%) | H69: Avg moisture
B70: Piece 1: | H70: =IFERROR(AVERAGE(D70:G70),"") -> 
B71: Piece 2:
B72: Piece 3:
B73: Piece 4:
B74: Piece 5:
B75: Piece 6:
B76: Load total: | C76: =IF(SUM(C70:C75)=0,"",SUM(C70:C75)) ->  | H76: =IF(COUNTA(C70:C75)<>COUNTA(D70:G75)/4,"",IFERROR(SUMPRODUCT(C70:C75,H70:H75)/C76,"")) -> 
C77: =IF('2-Fuel Load'!C22="","Target load is not defined yet.",IF(OR(C76="",C76<'2-Fuel Load'!C22*0.95),"↑↑ Add more fuel pieces or use heavier logs to reach the target weight: "&TEXT('2-Fuel Load'!C22*0.95,"0.00")&"–"&TEXT('2-Fuel Load'!C22*1.05,"0.00")&" lb"&CHAR(10)&"Allowed weight of each piece: "&TEXT('2-Fuel Load'!D22,"0.00")&"–"&TEXT('2-Fuel Load'!E22,"0.00")&" lb",IF(C76>'2-Fuel Load'!C22*1.05,"↑↑ Remove some fuel pieces or use lighter logs to reach the target weight :"&TEXT('2-Fuel Load'!C22*0.95,"0.00")&"–"&TEXT('2-Fuel Load'!C22*1.05,"0.00")&" lb"&CHAR(10)&"Allowed weight of each piece: "&TEXT('2-Fuel Load'!D22,"0.00")&"–"&TEXT('2-Fuel Load'!E22,"0.00")&" lb","✓ Load weight is in the range"))) -> ↑↑ Add more fuel pieces or use heavier logs to reach the target weight: 15.20–16.80 lb Allowed weight of each piece: 5.45–9.56 lb
B79: Other Testing Information
B82: 3.7 Run Information | E82: 3.8 Test Lab Condition
B83: Run date: | F83: pre-test | G83: post-test
B84: Run number: | E84: Temperature: | H84: F
B85: Testing staff: | E85: Barometric pressure: | H85: in. Hg
B86: Witnesses or others present for test: | E86: Relative humidity: | H86: %
B87: Start time:
B88: End time:
B90: 3.9 Run Operation Data
B91: Load | C91: Actual weight at start of phase before loading (lb) | D91: Actual weight at start of phase after loading (lb) | E91: Target weight at end of phase (lb) | F91: Actual Weight at end of phase (lb)
B92: L1 (Fully Open) | E92: =IFERROR(D14*0.175,"") ->  | G92: =IFERROR(" Allowable range: "&TEXT(0.95*E92,"0.00")&"–"&TEXT(1.05*E92,"0.00"),"") -> 
B93: L2(A) (Fully Open) | E93: =IFERROR(F92+(D14/3),"") ->  | G93: =IFERROR(" Allowable range: "&TEXT(0.95*E93,"0.00")&"–"&TEXT(1.05*E93,"0.00"),"") -> 
B94: L2(B) (Fully Closed) | D94: Not applicable | E94: =IFERROR(F92+(D14*0.1),"") -> 
B95: L3 (Fully Closed) | E95: =IFERROR(F94+(D15*0.1),"") -> 
B96: L4 (Fully Closed) | E96: =IFERROR(F95+D16*0.1+D17*0.1,"") -> 
B98: 3.10 Run Operation Data
B99: Load | C99: Start time | D99: End time | E99: Door open time | F99: Door closed time
B100: L1 (Fully Open)
B101: L2(A) (Fully Open)
B102: L2(B) (Fully Closed)
B103: L3 (Fully Closed)
B104: L4 (Fully Closed)
B106: 3.11 Run Operation Data
B107: Load | C107: Notes on fuel adjustments/time
B108: L1 (Fully Open)
B109: L2(A) (Fully Open)
B110: L2(B) (Fully Closed)
B111: L3 (Fully Closed)
B112: L4 (Fully Closed)
B114: 3.12 Post Run Data Check
B115: 1) Any data points with filter temperatures outside the 80-90F?
B116: If yes, how many and for how long
B117: 2) Did tunnel temperature exceed 40C during the test?
B118: If yes, how many and for how long
B119: 3) Did tunnel humidity exceed 90%?
B120: If yes, how many and for how long
B121: 4) Any tunnel dew point measurements within 2C of filter temp
B122: If yes, how many and for how long
B123: 5) Tunnel flow for test? (dscf/min)

Sheet 3.3-Run #3 (hidden)
B2: Integrated Duty Cycle Fuel Calculator 3.3 Run #3 Details
B6: Detailed Fuel Information
F9: Enter the number of fuel pieces first, then enter the weight and MC details in Tables 3.2 through 3.6 ↓↓
B10: 3.1 Fuel Load Data
C11: Target load (lb) | D11: Actual weight (lb) | E11: Target # of pieces | F11: Actual # of pieces
B12: L1 - Kindling weight | C12: =IF('2-Fuel Load'!C17="","",TEXT('2-Fuel Load'!C17*0.95,"0.00")&" – "&TEXT('2-Fuel Load'!C17*1.05,"0.00")) -> 1.90 – 2.10 | D12: =IF(C24=0,"",C24) ->  | E12: ='2-Fuel Load'!F17 -> 14 | G12: Go to table
B13: L1 - Starter | C13: =IF('2-Fuel Load'!C18="","",TEXT('2-Fuel Load'!C18*0.95,"0.00")&" – "&TEXT('2-Fuel Load'!C18*1.05,"0.00")) -> 5.70 – 6.30 | D13: =IF(OR(C35=0,C24=0,SUM(C25:C34)=0),"",C35-C24) ->  | E13: ='2-Fuel Load'!F18 -> 4 | G13: Go to table
B14: L2 - Small pieces | C14: =IF('2-Fuel Load'!C19="","",TEXT('2-Fuel Load'!C19*0.95,"0.00")&" – "&TEXT('2-Fuel Load'!C19*1.05,"0.00")) -> 13.30 – 14.70 | D14: =IF(C49=0,"",C49) ->  | E14: ='2-Fuel Load'!F19 -> 4 | G14: Go to table
B15: L3 - Large pieces | C15: =IF('2-Fuel Load'!C20="","",TEXT('2-Fuel Load'!C20*0.95,"0.00")&" – "&TEXT('2-Fuel Load'!C20*1.05,"0.00")) -> 9.50 – 10.50 | D15: =IF(C56=0,"",C56) ->  | E15: ='2-Fuel Load'!F20 -> 2 | G15: Go to table
B16: L4 - Small pieces | C16: =IF('2-Fuel Load'!C21="","",TEXT('2-Fuel Load'!C21*0.95,"0.00")&" – "&TEXT('2-Fuel Load'!C21*1.05,"0.00")) -> 7.60 – 8.40 | D16: =IF(SUM(C60:C65)=0,"",SUM(C60:C65)) ->  | E16: ='2-Fuel Load'!F21 -> 2 | G16: Go to table
B17: L4 - Large pieces | C17: =IF('2-Fuel Load'!C22="","",TEXT('2-Fuel Load'!C22*0.95,"0.00")&" – "&TEXT('2-Fuel Load'!C22*1.05,"0.00")) -> 15.20 – 16.80 | D17: =IF(SUM(C70:C75)=0,"",SUM(C70:C75)) ->  | E17: ='2-Fuel Load'!F22 -> 3 | G17: Go to table
B22: 3.2 Load 1 - Kindling and starter fuel
B23: set the # of logs | C23: Weight (lb) | D23: pin 1 (%) | E23: pin 2 (%) | F23: pin 3 (%) | G23: pin 4 (%) | H23: Avg moisture
B24: Kindling total: | D24: Not applicable
B25: Piece 1: | H25: =IFERROR(AVERAGE(D25:G25),"") -> 
B26: Piece 2:
B27: Piece 3:
B28: Piece 4:
B29: Piece 5:
B30: Piece 6:
B31: Piece 7:
B32: Piece 8:
B33: Piece 9:
B34: Piece 10: | H34: =IFERROR(AVERAGE(D34:G34),"") -> 
B35: Load total: | C35: =IF(COUNTA(C24:C34)=0,"",SUM(C24:C34)) ->  | H35: =IF(COUNTA(C25:C34)<>COUNTA(D25:G34)/4,"",IFERROR(SUMPRODUCT(C25:C34,H25:H34)/C35,"")) -> 
C36: =IF(OR('2-Fuel Load'!C17="",'2-Fuel Load'!C18=""),"Target load is not defined yet.",IF(OR(C35="",C35<SUM('2-Fuel Load'!C17:C18)*0.95),"↑↑ Add more fuel pieces or use heavier logs to reach the target weight: "&TEXT(SUM('2-Fuel Load'!C17:C18)*0.95,"0.00")&"–"&TEXT(SUM('2-Fuel Load'!C17:C18)*1.05,"0.00")&" lb"&CHAR(10)&"Allowed weight of each piece: "&TEXT('2-Fuel Load'!D18,"0.00")&"–"&TEXT('2-Fuel Load'!E18,"0.00")&" lb",IF(C35>SUM('2-Fuel Load'!C17:C18)*1.05,"↑↑ Remove some fuel pieces or use lighter logs to reach the target weight :"&TEXT(SUM('2-Fuel Load'!C17:C18)*0.95,"0.00")&"–"&TEXT(SUM('2-Fuel Load'!C17:C18)*1.05,"0.00")&" lb"&CHAR(10)&"Allowed weight of each piece: "&TEXT('2-Fuel Load'!D18,"0.00")&"–"&TEXT('2-Fuel Load'!E18,"0.00")&" lb","✓ Load weight is in the range"))) -> ↑↑ Add more fuel pieces or use heavier logs to reach the target weight: 7.60–8.40 lb Allowed weight of each piece: 1.00–2.64 lb
B37: 3.3 Load 2 - Small pieces
B38: set the # of logs | C38: Weight (lb) | D38: pin 1 (%) | E38: pin 2 (%) | F38: pin 3 (%) | G38: pin 4 (%) | H38: Avg moisture
B39: Piece 1: | H39: =IFERROR(AVERAGE(D39:G39),"") -> 
B40: Piece 2: | H40: =IFERROR(AVERAGE(D40:G40),"") -> 
B41: Piece 3:
B42: Piece 4:
B43: Piece 5:
B44: Piece 6:
B45: Piece 7:
B46: Piece 8:
B47: Piece 9:
B48: Piece 10:
B49: Load total: | C49: =IF(COUNTA(C39:C48)=0,"",SUM(C39:C48)) ->  | H49: =IF(COUNTA(C39:C48)<>COUNTA(D39:G48)/4,"",IFERROR(SUMPRODUCT(C39:C48,H39:H48)/C49,"")) -> 
C50: =IF('2-Fuel Load'!C19="","Target load is not defined yet.",IF(OR(C49="",C49<'2-Fuel Load'!C19*0.95),"↑↑ Add more fuel pieces or use heavier logs to reach the target weight: "&TEXT('2-Fuel Load'!C19*0.95,"0.00")&"–"&TEXT('2-Fuel Load'!C19*1.05,"0.00")&" lb"&CHAR(10)&"Allowed weight of each piece: "&TEXT('2-Fuel Load'!D19,"0.00")&"–"&TEXT('2-Fuel Load'!E19,"0.00")&" lb",IF(C49>'2-Fuel Load'!C19*1.05,"↑↑ Remove some fuel pieces or use lighter logs to reach the target weight :"&TEXT('2-Fuel Load'!C19*0.95,"0.00")&"–"&TEXT('2-Fuel Load'!C19*1.05,"0.00")&" lb"&CHAR(10)&"Allowed weight of each piece: "&TEXT('2-Fuel Load'!D19,"0.00")&"–"&TEXT('2-Fuel Load'!E19,"0.00")&" lb","✓ Load weight is in the range"))) -> ↑↑ Add more fuel pieces or use heavier logs to reach the target weight: 13.30–14.70 lb Allowed weight of each piece: 2.67–5.39 lb
B51: 3.4 Load 3 - Large pieces
B52: set the # of logs | C52: Weight (lb) | D52: pin 1 (%) | E52: pin 2 (%) | F52: pin 3 (%) | G52: pin 4 (%) | H52: Avg moisture
B53: Piece 1: | H53: =IFERROR(AVERAGE(D53:G53),"") -> 
B54: Piece 2: | H54: =IFERROR(AVERAGE(D54:G54),"") -> 
B55: Piece 3: | H55: =IFERROR(AVERAGE(D55:G55),"") -> 
B56: Load total: | C56: =IF(COUNTA(C53:C55)=0,"",SUM(C53:C55)) ->  | H56: =IF(COUNTA(C53:C55)<>COUNTA(D53:G55)/4,"",IFERROR(SUMPRODUCT(C53:C55,H53:H55)/C56,"")) -> 
C57: =IF('2-Fuel Load'!C20="","Target load is not defined yet.",IF(OR(C56="",C56<'2-Fuel Load'!C20*0.95),"↑↑ Add more fuel pieces or use heavier logs to reach the target weight: "&TEXT('2-Fuel Load'!C20*0.95,"0.00")&"–"&TEXT('2-Fuel Load'!C20*1.05,"0.00")&" lb"&CHAR(10)&"Allowed weight of each piece: "&TEXT('2-Fuel Load'!D20,"0.00")&"–"&TEXT('2-Fuel Load'!E20,"0.00")&" lb",IF(C56>'2-Fuel Load'!C20*1.05,"↑↑ Remove some fuel pieces or use lighter logs to reach the target weight :"&TEXT('2-Fuel Load'!C20*0.95,"0.00")&"–"&TEXT('2-Fuel Load'!C20*1.05,"0.00")&" lb"&CHAR(10)&"Allowed weight of each piece: "&TEXT('2-Fuel Load'!D20,"0.00")&"–"&TEXT('2-Fuel Load'!E20,"0.00")&" lb","✓ Load weight is in the range"))) -> ↑↑ Add more fuel pieces or use heavier logs to reach the target weight: 9.50–10.50 lb Allowed weight of each piece: 4.00–6.00 lb
B58: 3.5 Load 4 - Small pieces
B59: set the # of logs | C59: Weight (lb) | D59: pin 1 (%) | E59: pin 2 (%) | F59: pin 3 (%) | G59: pin 4 (%) | H59: Avg moisture
B60: Piece 1: | H60: =IFERROR(AVERAGE(D60:G60),"") -> 
B61: Piece 2:
B62: Piece 3:
B63: Piece 4:
B64: Piece 5:
B65: Piece 6:
B66: Load total: | C66: =IF(SUM(C60:C65)=0,"",SUM(C60:C65)) ->  | H66: =IF(COUNTA(C60:C65)<>COUNTA(D60:G65)/4,"",IFERROR(SUMPRODUCT(C60:C65,H60:H65)/C66,"")) -> 
C67: =IF('2-Fuel Load'!C21="","Target load is not defined yet.",IF(OR(C66="",C66<'2-Fuel Load'!C21*0.95),"↑↑ Add more fuel pieces or use heavier logs to reach the target weight: "&TEXT('2-Fuel Load'!C21*0.95,"0.00")&"–"&TEXT('2-Fuel Load'!C21*1.05,"0.00")&" lb"&CHAR(10)&"Allowed weight of each piece: "&TEXT('2-Fuel Load'!D21,"0.00")&"–"&TEXT('2-Fuel Load'!E21,"0.00")&" lb",IF(C66>'2-Fuel Load'!C21*1.05,"↑↑ Remove some fuel pieces or use lighter logs to reach the target weight :"&TEXT('2-Fuel Load'!C21*0.95,"0.00")&"–"&TEXT('2-Fuel Load'!C21*1.05,"0.00")&" lb"&CHAR(10)&"Allowed weight of each piece: "&TEXT('2-Fuel Load'!D21,"0.00")&"–"&TEXT('2-Fuel Load'!E21,"0.00")&" lb","✓ Load weight is in the range"))) -> ↑↑ Add more fuel pieces or use heavier logs to reach the target weight: 7.60–8.40 lb Allowed weight of each piece: 2.67–5.39 lb
B68: 3.6 Load 4 - Large pieces
B69: set the # of logs | C69: Weight (lb) | D69: pin 1 (%) | E69: pin 2 (%) | F69: pin 3 (%) | G69: pin 4 (%) | H69: Avg moisture
B70: Piece 1: | H70: =IFERROR(AVERAGE(D70:G70),"") -> 
B71: Piece 2:
B72: Piece 3:
B73: Piece 4:
B74: Piece 5:
B75: Piece 6:
B76: Load total: | C76: =IF(SUM(C70:C75)=0,"",SUM(C70:C75)) ->  | H76: =IF(COUNTA(C70:C75)<>COUNTA(D70:G75)/4,"",IFERROR(SUMPRODUCT(C70:C75,H70:H75)/C76,"")) -> 
C77: =IF('2-Fuel Load'!C22="","Target load is not defined yet.",IF(OR(C76="",C76<'2-Fuel Load'!C22*0.95),"↑↑ Add more fuel pieces or use heavier logs to reach the target weight: "&TEXT('2-Fuel Load'!C22*0.95,"0.00")&"–"&TEXT('2-Fuel Load'!C22*1.05,"0.00")&" lb"&CHAR(10)&"Allowed weight of each piece: "&TEXT('2-Fuel Load'!D22,"0.00")&"–"&TEXT('2-Fuel Load'!E22,"0.00")&" lb",IF(C76>'2-Fuel Load'!C22*1.05,"↑↑ Remove some fuel pieces or use lighter logs to reach the target weight :"&TEXT('2-Fuel Load'!C22*0.95,"0.00")&"–"&TEXT('2-Fuel Load'!C22*1.05,"0.00")&" lb"&CHAR(10)&"Allowed weight of each piece: "&TEXT('2-Fuel Load'!D22,"0.00")&"–"&TEXT('2-Fuel Load'!E22,"0.00")&" lb","✓ Load weight is in the range"))) -> ↑↑ Add more fuel pieces or use heavier logs to reach the target weight: 15.20–16.80 lb Allowed weight of each piece: 5.45–9.56 lb
B79: Other Testing Information
B82: 3.7 Run Information | E82: 3.8 Test Lab Condition
B83: Run date: | F83: pre-test | G83: post-test
B84: Run number: | E84: Temperature: | H84: F
B85: Testing staff: | E85: Barometric pressure: | H85: in. Hg
B86: Witnesses or others present for test: | E86: Relative humidity: | H86: %
B87: Start time:
B88: End time:
B90: 3.9 Run Operation Data
B91: Load | C91: Actual weight at start of phase before loading (lb) | D91: Actual weight at start of phase after loading (lb) | E91: Target weight at end of phase (lb) | F91: Actual Weight at end of phase (lb)
B92: L1 (Fully Open) | E92: =IFERROR(D14*0.175,"") ->  | G92: =IFERROR(" Allowable range: "&TEXT(0.95*E92,"0.00")&"–"&TEXT(1.05*E92,"0.00"),"") -> 
B93: L2(A) (Fully Open) | E93: =IFERROR(F92+(D14/3),"") ->  | G93: =IFERROR(" Allowable range: "&TEXT(0.95*E93,"0.00")&"–"&TEXT(1.05*E93,"0.00"),"") -> 
B94: L2(B) (Fully Closed) | D94: Not applicable | E94: =IFERROR(F92+(D14*0.1),"") -> 
B95: L3 (Fully Closed) | E95: =IFERROR(F94+(D15*0.1),"") -> 
B96: L4 (Fully Closed) | E96: =IFERROR(F95+D16*0.1+D17*0.1,"") -> 
B98: 3.10 Run Operation Data
B99: Load | C99: Start time | D99: End time | E99: Door open time | F99: Door closed time
B100: L1 (Fully Open)
B101: L2(A) (Fully Open)
B102: L2(B) (Fully Closed)
B103: L3 (Fully Closed)
B104: L4 (Fully Closed)
B106: 3.11 Run Operation Data
B107: Load | C107: Notes on fuel adjustments/time
B108: L1 (Fully Open)
B109: L2(A) (Fully Open)
B110: L2(B) (Fully Closed)
B111: L3 (Fully Closed)
B112: L4 (Fully Closed)
B114: 3.12 Post Run Data Check
B115: 1) Any data points with filter temperatures outside the 80-90F?
B116: If yes, how many and for how long
B117: 2) Did tunnel temperature exceed 40C during the test?
B118: If yes, how many and for how long
B119: 3) Did tunnel humidity exceed 90%?
B120: If yes, how many and for how long
B121: 4) Any tunnel dew point measurements within 2C of filter temp
B122: If yes, how many and for how long
B123: 5) Tunnel flow for test? (dscf/min)

Sheet 3.4-Run #4 (hidden)
B2: Integrated Duty Cycle Fuel Calculator 3.4 Run #4 Details
B6: Detailed Fuel Information
F9: Enter the number of fuel pieces first, then enter the weight and MC details in Tables 3.2 through 3.6 ↓↓
B10: 3.1 Fuel Load Data
C11: Target load (lb) | D11: Actual weight (lb) | E11: Target # of pieces | F11: Actual # of pieces
B12: L1 - Kindling weight | C12: =IF('2-Fuel Load'!C17="","",TEXT('2-Fuel Load'!C17*0.95,"0.00")&" – "&TEXT('2-Fuel Load'!C17*1.05,"0.00")) -> 1.90 – 2.10 | D12: =IF(C24=0,"",C24) ->  | E12: ='2-Fuel Load'!F17 -> 14 | G12: Go to table
B13: L1 - Starter | C13: =IF('2-Fuel Load'!C18="","",TEXT('2-Fuel Load'!C18*0.95,"0.00")&" – "&TEXT('2-Fuel Load'!C18*1.05,"0.00")) -> 5.70 – 6.30 | D13: =IF(OR(C35=0,C24=0,SUM(C25:C34)=0),"",C35-C24) ->  | E13: ='2-Fuel Load'!F18 -> 4 | G13: Go to table
B14: L2 - Small pieces | C14: =IF('2-Fuel Load'!C19="","",TEXT('2-Fuel Load'!C19*0.95,"0.00")&" – "&TEXT('2-Fuel Load'!C19*1.05,"0.00")) -> 13.30 – 14.70 | D14: =IF(C49=0,"",C49) ->  | E14: ='2-Fuel Load'!F19 -> 4 | G14: Go to table
B15: L3 - Large pieces | C15: =IF('2-Fuel Load'!C20="","",TEXT('2-Fuel Load'!C20*0.95,"0.00")&" – "&TEXT('2-Fuel Load'!C20*1.05,"0.00")) -> 9.50 – 10.50 | D15: =IF(C56=0,"",C56) ->  | E15: ='2-Fuel Load'!F20 -> 2 | G15: Go to table
B16: L4 - Small pieces | C16: =IF('2-Fuel Load'!C21="","",TEXT('2-Fuel Load'!C21*0.95,"0.00")&" – "&TEXT('2-Fuel Load'!C21*1.05,"0.00")) -> 7.60 – 8.40 | D16: =IF(SUM(C60:C65)=0,"",SUM(C60:C65)) ->  | E16: ='2-Fuel Load'!F21 -> 2 | G16: Go to table
B17: L4 - Large pieces | C17: =IF('2-Fuel Load'!C22="","",TEXT('2-Fuel Load'!C22*0.95,"0.00")&" – "&TEXT('2-Fuel Load'!C22*1.05,"0.00")) -> 15.20 – 16.80 | D17: =IF(SUM(C70:C75)=0,"",SUM(C70:C75)) ->  | E17: ='2-Fuel Load'!F22 -> 3 | G17: Go to table
B22: 3.2 Load 1 - Kindling and starter fuel
B23: set the # of logs | C23: Weight (lb) | D23: pin 1 (%) | E23: pin 2 (%) | F23: pin 3 (%) | G23: pin 4 (%) | H23: Avg moisture
B24: Kindling total: | D24: Not applicable
B25: Piece 1: | H25: =IFERROR(AVERAGE(D25:G25),"") -> 
B26: Piece 2:
B27: Piece 3:
B28: Piece 4:
B29: Piece 5:
B30: Piece 6:
B31: Piece 7:
B32: Piece 8:
B33: Piece 9:
B34: Piece 10: | H34: =IFERROR(AVERAGE(D34:G34),"") -> 
B35: Load total: | C35: =IF(COUNTA(C24:C34)=0,"",SUM(C24:C34)) ->  | H35: =IF(COUNTA(C25:C34)<>COUNTA(D25:G34)/4,"",IFERROR(SUMPRODUCT(C25:C34,H25:H34)/C35,"")) -> 
C36: =IF(OR('2-Fuel Load'!C17="",'2-Fuel Load'!C18=""),"Target load is not defined yet.",IF(OR(C35="",C35<SUM('2-Fuel Load'!C17:C18)*0.95),"↑↑ Add more fuel pieces or use heavier logs to reach the target weight: "&TEXT(SUM('2-Fuel Load'!C17:C18)*0.95,"0.00")&"–"&TEXT(SUM('2-Fuel Load'!C17:C18)*1.05,"0.00")&" lb"&CHAR(10)&"Allowed weight of each piece: "&TEXT('2-Fuel Load'!D18,"0.00")&"–"&TEXT('2-Fuel Load'!E18,"0.00")&" lb",IF(C35>SUM('2-Fuel Load'!C17:C18)*1.05,"↑↑ Remove some fuel pieces or use lighter logs to reach the target weight :"&TEXT(SUM('2-Fuel Load'!C17:C18)*0.95,"0.00")&"–"&TEXT(SUM('2-Fuel Load'!C17:C18)*1.05,"0.00")&" lb"&CHAR(10)&"Allowed weight of each piece: "&TEXT('2-Fuel Load'!D18,"0.00")&"–"&TEXT('2-Fuel Load'!E18,"0.00")&" lb","✓ Load weight is in the range"))) -> ↑↑ Add more fuel pieces or use heavier logs to reach the target weight: 7.60–8.40 lb Allowed weight of each piece: 1.00–2.64 lb
B37: 3.3 Load 2 - Small pieces
B38: set the # of logs | C38: Weight (lb) | D38: pin 1 (%) | E38: pin 2 (%) | F38: pin 3 (%) | G38: pin 4 (%) | H38: Avg moisture
B39: Piece 1: | H39: =IFERROR(AVERAGE(D39:G39),"") -> 
B40: Piece 2: | H40: =IFERROR(AVERAGE(D40:G40),"") -> 
B41: Piece 3:
B42: Piece 4:
B43: Piece 5:
B44: Piece 6:
B45: Piece 7:
B46: Piece 8:
B47: Piece 9:
B48: Piece 10:
B49: Load total: | C49: =IF(COUNTA(C39:C48)=0,"",SUM(C39:C48)) ->  | H49: =IF(COUNTA(C39:C48)<>COUNTA(D39:G48)/4,"",IFERROR(SUMPRODUCT(C39:C48,H39:H48)/C49,"")) -> 
C50: =IF('2-Fuel Load'!C19="","Target load is not defined yet.",IF(OR(C49="",C49<'2-Fuel Load'!C19*0.95),"↑↑ Add more fuel pieces or use heavier logs to reach the target weight: "&TEXT('2-Fuel Load'!C19*0.95,"0.00")&"–"&TEXT('2-Fuel Load'!C19*1.05,"0.00")&" lb"&CHAR(10)&"Allowed weight of each piece: "&TEXT('2-Fuel Load'!D19,"0.00")&"–"&TEXT('2-Fuel Load'!E19,"0.00")&" lb",IF(C49>'2-Fuel Load'!C19*1.05,"↑↑ Remove some fuel pieces or use lighter logs to reach the target weight :"&TEXT('2-Fuel Load'!C19*0.95,"0.00")&"–"&TEXT('2-Fuel Load'!C19*1.05,"0.00")&" lb"&CHAR(10)&"Allowed weight of each piece: "&TEXT('2-Fuel Load'!D19,"0.00")&"–"&TEXT('2-Fuel Load'!E19,"0.00")&" lb","✓ Load weight is in the range"))) -> ↑↑ Add more fuel pieces or use heavier logs to reach the target weight: 13.30–14.70 lb Allowed weight of each piece: 2.67–5.39 lb
B51: 3.4 Load 3 - Large pieces
B52: set the # of logs | C52: Weight (lb) | D52: pin 1 (%) | E52: pin 2 (%) | F52: pin 3 (%) | G52: pin 4 (%) | H52: Avg moisture
B53: Piece 1: | H53: =IFERROR(AVERAGE(D53:G53),"") -> 
B54: Piece 2: | H54: =IFERROR(AVERAGE(D54:G54),"") -> 
B55: Piece 3: | H55: =IFERROR(AVERAGE(D55:G55),"") -> 
B56: Load total: | C56: =IF(COUNTA(C53:C55)=0,"",SUM(C53:C55)) ->  | H56: =IF(COUNTA(C53:C55)<>COUNTA(D53:G55)/4,"",IFERROR(SUMPRODUCT(C53:C55,H53:H55)/C56,"")) -> 
C57: =IF('2-Fuel Load'!C20="","Target load is not defined yet.",IF(OR(C56="",C56<'2-Fuel Load'!C20*0.95),"↑↑ Add more fuel pieces or use heavier logs to reach the target weight: "&TEXT('2-Fuel Load'!C20*0.95,"0.00")&"–"&TEXT('2-Fuel Load'!C20*1.05,"0.00")&" lb"&CHAR(10)&"Allowed weight of each piece: "&TEXT('2-Fuel Load'!D20,"0.00")&"–"&TEXT('2-Fuel Load'!E20,"0.00")&" lb",IF(C56>'2-Fuel Load'!C20*1.05,"↑↑ Remove some fuel pieces or use lighter logs to reach the target weight :"&TEXT('2-Fuel Load'!C20*0.95,"0.00")&"–"&TEXT('2-Fuel Load'!C20*1.05,"0.00")&" lb"&CHAR(10)&"Allowed weight of each piece: "&TEXT('2-Fuel Load'!D20,"0.00")&"–"&TEXT('2-Fuel Load'!E20,"0.00")&" lb","✓ Load weight is in the range"))) -> ↑↑ Add more fuel pieces or use heavier logs to reach the target weight: 9.50–10.50 lb Allowed weight of each piece: 4.00–6.00 lb
B58: 3.5 Load 4 - Small pieces
B59: set the # of logs | C59: Weight (lb) | D59: pin 1 (%) | E59: pin 2 (%) | F59: pin 3 (%) | G59: pin 4 (%) | H59: Avg moisture
B60: Piece 1: | H60: =IFERROR(AVERAGE(D60:G60),"") -> 
B61: Piece 2:
B62: Piece 3:
B63: Piece 4:
B64: Piece 5:
B65: Piece 6:
B66: Load total: | C66: =IF(SUM(C60:C65)=0,"",SUM(C60:C65)) ->  | H66: =IF(COUNTA(C60:C65)<>COUNTA(D60:G65)/4,"",IFERROR(SUMPRODUCT(C60:C65,H60:H65)/C66,"")) -> 
C67: =IF('2-Fuel Load'!C21="","Target load is not defined yet.",IF(OR(C66="",C66<'2-Fuel Load'!C21*0.95),"↑↑ Add more fuel pieces or use heavier logs to reach the target weight: "&TEXT('2-Fuel Load'!C21*0.95,"0.00")&"–"&TEXT('2-Fuel Load'!C21*1.05,"0.00")&" lb"&CHAR(10)&"Allowed weight of each piece: "&TEXT('2-Fuel Load'!D21,"0.00")&"–"&TEXT('2-Fuel Load'!E21,"0.00")&" lb",IF(C66>'2-Fuel Load'!C21*1.05,"↑↑ Remove some fuel pieces or use lighter logs to reach the target weight :"&TEXT('2-Fuel Load'!C21*0.95,"0.00")&"–"&TEXT('2-Fuel Load'!C21*1.05,"0.00")&" lb"&CHAR(10)&"Allowed weight of each piece: "&TEXT('2-Fuel Load'!D21,"0.00")&"–"&TEXT('2-Fuel Load'!E21,"0.00")&" lb","✓ Load weight is in the range"))) -> ↑↑ Add more fuel pieces or use heavier logs to reach the target weight: 7.60–8.40 lb Allowed weight of each piece: 2.67–5.39 lb
B68: 3.6 Load 4 - Large pieces
B69: set the # of logs | C69: Weight (lb) | D69: pin 1 (%) | E69: pin 2 (%) | F69: pin 3 (%) | G69: pin 4 (%) | H69: Avg moisture
B70: Piece 1: | H70: =IFERROR(AVERAGE(D70:G70),"") -> 
B71: Piece 2:
B72: Piece 3:
B73: Piece 4:
B74: Piece 5:
B75: Piece 6:
B76: Load total: | C76: =IF(SUM(C70:C75)=0,"",SUM(C70:C75)) ->  | H76: =IF(COUNTA(C70:C75)<>COUNTA(D70:G75)/4,"",IFERROR(SUMPRODUCT(C70:C75,H70:H75)/C76,"")) -> 
C77: =IF('2-Fuel Load'!C22="","Target load is not defined yet.",IF(OR(C76="",C76<'2-Fuel Load'!C22*0.95),"↑↑ Add more fuel pieces or use heavier logs to reach the target weight: "&TEXT('2-Fuel Load'!C22*0.95,"0.00")&"–"&TEXT('2-Fuel Load'!C22*1.05,"0.00")&" lb"&CHAR(10)&"Allowed weight of each piece: "&TEXT('2-Fuel Load'!D22,"0.00")&"–"&TEXT('2-Fuel Load'!E22,"0.00")&" lb",IF(C76>'2-Fuel Load'!C22*1.05,"↑↑ Remove some fuel pieces or use lighter logs to reach the target weight :"&TEXT('2-Fuel Load'!C22*0.95,"0.00")&"–"&TEXT('2-Fuel Load'!C22*1.05,"0.00")&" lb"&CHAR(10)&"Allowed weight of each piece: "&TEXT('2-Fuel Load'!D22,"0.00")&"–"&TEXT('2-Fuel Load'!E22,"0.00")&" lb","✓ Load weight is in the range"))) -> ↑↑ Add more fuel pieces or use heavier logs to reach the target weight: 15.20–16.80 lb Allowed weight of each piece: 5.45–9.56 lb
B79: Other Testing Information
B82: 3.7 Run Information | E82: 3.8 Test Lab Condition
B83: Run date: | F83: pre-test | G83: post-test
B84: Run number: | E84: Temperature: | H84: F
B85: Testing staff: | E85: Barometric pressure: | H85: in. Hg
B86: Witnesses or others present for test: | E86: Relative humidity: | H86: %
B87: Start time:
B88: End time:
B90: 3.9 Run Operation Data
B91: Load | C91: Actual weight at start of phase before loading (lb) | D91: Actual weight at start of phase after loading (lb) | E91: Target weight at end of phase (lb) | F91: Actual Weight at end of phase (lb)
B92: L1 (Fully Open) | E92: =IFERROR(D14*0.175,"") ->  | G92: =IFERROR(" Allowable range: "&TEXT(0.95*E92,"0.00")&"–"&TEXT(1.05*E92,"0.00"),"") -> 
B93: L2(A) (Fully Open) | E93: =IFERROR(F92+(D14/3),"") ->  | G93: =IFERROR(" Allowable range: "&TEXT(0.95*E93,"0.00")&"–"&TEXT(1.05*E93,"0.00"),"") -> 
B94: L2(B) (Fully Closed) | D94: Not applicable | E94: =IFERROR(F92+(D14*0.1),"") -> 
B95: L3 (Fully Closed) | E95: =IFERROR(F94+(D15*0.1),"") -> 
B96: L4 (Fully Closed) | E96: =IFERROR(F95+D16*0.1+D17*0.1,"") -> 
B98: 3.10 Run Operation Data
B99: Load | C99: Start time | D99: End time | E99: Door open time | F99: Door closed time
B100: L1 (Fully Open)
B101: L2(A) (Fully Open)
B102: L2(B) (Fully Closed)
B103: L3 (Fully Closed)
B104: L4 (Fully Closed)
B106: 3.11 Run Operation Data
B107: Load | C107: Notes on fuel adjustments/time
B108: L1 (Fully Open)
B109: L2(A) (Fully Open)
B110: L2(B) (Fully Closed)
B111: L3 (Fully Closed)
B112: L4 (Fully Closed)
B114: 3.12 Post Run Data Check
B115: 1) Any data points with filter temperatures outside the 80-90F?
B116: If yes, how many and for how long
B117: 2) Did tunnel temperature exceed 40C during the test?
B118: If yes, how many and for how long
B119: 3) Did tunnel humidity exceed 90%?
B120: If yes, how many and for how long
B121: 4) Any tunnel dew point measurements within 2C of filter temp
B122: If yes, how many and for how long
B123: 5) Tunnel flow for test? (dscf/min)
